bitfinex-derivatives/quotes_BTCF0:USTF0_20241125
["timestamp","ask_amount","ask_price","bid_price","bid_amount"]
[1732542673311,0.4119,97782.0,97781.0,0.0004]
[1732542673703,0.4119,97782.0,97776.0,0.02724682]
[1732542673917,0.051105,97773.0,97772.0,0.3608]
[1732542674212,0.051105,97773.0,97772.0,0.38769565]
[1732542675321,0.35733182,97773.0,97772.0,0.38769565]
[1732542675513,0.051105,97773.0,97772.0,0.02689565]
[1732542675712,0.051109,97766.0,97765.0,0.051109]
[1732542676023,0.051509,97766.0,97765.0,0.051109]
[1732542678328,0.051111,97761.0,97760.0,0.02643188]
[1732542678516,0.051112,97760.0,97759.0,0.43237549]
[1732542679025,0.051512,97760.0,97759.0,0.43237549]
[1732542679423,0.051512,97760.0,97759.0,0.45896018]
[1732542679424,0.0004,97760.0,97759.0,0.45896018]
[1732542679624,0.051512,97760.0,97759.0,0.45896018]
[1732542680221,0.0004,97760.0,97759.0,0.45896018]
[1732542680626,0.0004,97760.0,97759.0,0.76584018]
[1732542680826,0.36074393,97778.0,97759.0,0.71472818]
[1732542681024,0.051109,97766.0,97765.0,0.051109]
[1732542681523,0.36074393,97778.0,97759.0,0.40864818]
[1732542681741,0.57374,97786.0,97770.0,0.3608]
[1732542681929,0.051106,97771.0,97770.0,0.3608]
[1732542682321,0.051106,97771.0,97759.0,0.55988818]
[1732542682322,0.051112,97760.0,97759.0,0.38818469]
[1732542682628,0.031032,97760.0,97759.0,0.38738469]
[1732542684537,0.0004,97760.0,97759.0,0.43849669]
[1732542687938,0.051102,97779.0,97761.0,0.051111]
[1732542688242,0.051102,97779.0,97778.0,0.00119999]
[1732542690849,0.081402,97779.0,97778.0,0.00119999]
[1732542691442,0.051112,97760.0,97759.0,0.02658469]
[1732542691640,0.051112,97760.0,97754.0,0.0204638]
[1732542691641,0.051115,97755.0,97754.0,0.0204638]
[1732542691841,0.051115,97755.0,97754.0,0.0715788]
[1732542693034,0.0004,97760.0,97759.0,0.051112]
[1732542693035,0.051512,97760.0,97759.0,0.051112]
[1732542693236,0.0004,97760.0,97759.0,0.051112]
[1732542693442,0.0004,97760.0,97759.0,0.051512]
[1732542695636,0.0004,97760.0,97759.0,0.358392]
[1732542696445,0.051106,97772.0,97759.0,0.358392]
[1732542696742,0.031026,97772.0,97771.0,0.412306]
[1732542696947,0.051103,97777.0,97771.0,0.3612]
[1732542697243,0.051104,97776.0,97775.0,0.051104]
[1732542699640,0.051104,97776.0,97775.0,0.07764411]
[1732542703954,0.051104,97776.0,97775.0,0.02654011]
[1732542704250,0.21404,97787.0,97771.0,0.3608]
[1732542704251,0.051106,97772.0,97771.0,0.3608]
[1732542704755,0.051506,97772.0,97771.0,0.3608]
[1732542704954,0.0004,97772.0,97771.0,0.38739723]
[1732542705145,0.0004,97772.0,97771.0,0.43850323]
[1732542708547,0.0004,97772.0,97771.0,0.74534323]
[1732542708746,0.0004,97772.0,97771.0,0.81074323]
[1732542710248,0.07966685,97787.0,97786.0,0.051098]
[1732542713646,0.07966685,97787.0,97786.0,0.07745589]
[1732542718856,0.00153466,97788.0,97786.0,0.02635789]
[1732542719164,0.33708093,97793.0,97792.0,0.051095]
[1732542719458,0.33708093,97796.0,97787.0,0.52020001]
[1732542719650,0.33708093,97796.0,97795.0,0.3608]
[1732542719854,0.0308,97809.0,97799.0,0.051092]
[1732542719855,0.33708093,97804.0,97799.0,0.051092]
[1732542720052,0.33708093,97804.0,97795.0,0.41269401]
[1732542720053,0.69788093,97806.0,97796.0,0.051092]
[1732542720254,0.051093,97797.0,97796.0,0.051092]
[1732542720655,0.30614488,97798.0,97797.0,0.051093]
[1732542721060,0.051092,97798.0,97797.0,0.051093]
[1732542721361,0.3608,97806.0,97795.0,0.00080001]
[1732542721362,0.40614488,97800.0,97799.0,0.051092]
[1732542721660,0.40614488,97800.0,97799.0,0.05189201]
[1732542721860,0.1,97800.0,97799.0,0.05189201]
[1732542722060,0.45716758,97800.0,97799.0,0.05189201]
[1732542722362,0.151091,97800.0,97799.0,0.05189201]
[1732542722752,0.1,97800.0,97799.0,0.05189201]
[1732542724075,0.40609715,97800.0,97799.0,0.05189201]
[1732542724268,0.1,97800.0,97799.0,0.05189201]
[1732542724966,0.151091,97800.0,97799.0,0.05189201]
[1732542726862,0.1,97800.0,97799.0,0.05189201]
[1732542729758,0.151091,97800.0,97799.0,0.00080001]
[1732542730069,0.151091,97800.0,97795.0,0.02809332]
[1732542730070,0.616411,97800.0,97795.0,0.02809332]
[1732542730367,0.051105,97773.0,97769.0,0.3608]
[1732542730668,0.051105,97773.0,97772.0,0.02799767]
[1732542730855,0.051105,97773.0,97772.0,0.05263994]
[1732542731858,0.051105,97773.0,97772.0,0.00153394]
[1732542732059,0.411905,97773.0,97772.0,0.00153394]
[1732542732265,0.051105,97773.0,97772.0,0.05263994]
[1732542732570,0.3608,97783.0,97777.0,0.051103]
[1732542732571,0.051101,97782.0,97777.0,0.051103]
[1732542732774,0.66741689,97783.0,97773.0,0.051105]
[1732542733064,0.30609688,97782.0,97781.0,0.0004]
[1732542733275,0.3608,97783.0,97781.0,0.0004]
[1732542733660,0.3608,97783.0,97782.0,0.0004]
[1732542733869,0.4119,97783.0,97782.0,0.0004]
[1732542734253,0.0511,97783.0,97782.0,0.0004]
[1732542734455,0.06136699,97783.0,97781.0,0.01992914]
[1732542734658,0.01026699,97782.0,97772.0,0.36233394]
[1732542734859,0.27552043,97778.0,97772.0,0.36233394]
[1732542735161,0.01026699,97777.0,97772.0,0.36233394]
[1732542735662,0.01026699,97777.0,97776.0,0.051104]
[1732542735860,0.0317,97784.0,97778.0,0.051103]
[1732542735861,0.27552043,97780.0,97778.0,0.051103]
[1732542736068,0.27552043,97781.0,97780.0,0.051101]
[1732542736383,0.27552043,97781.0,97780.0,0.411901]
[1732542736384,0.01013519,97781.0,97780.0,0.411901]
[1732542736580,0.1,97800.0,97788.0,0.051097]
[1732542736581,0.01013519,97789.0,97788.0,0.051097]
[1732542736757,0.30689689,97796.0,97795.0,0.051094]
[1732542736961,0.01100798,97796.0,97795.0,0.051094]
[1732542737173,0.1,97800.0,97799.0,0.051092]
[1732542737174,0.06274595,97800.0,97799.0,0.051092]
[1732542737461,0.06274595,97800.0,97799.0,0.570452]
[1732542737671,0.06274595,97800.0,97799.0,0.570852]
[1732542738866,0.04226595,97800.0,97799.0,0.570852]
[1732542739271,0.00153451,97815.0,97799.0,0.570852]
[1732542739569,0.4872035,97890.0,97828.0,0.051076]
[1732542739570,0.25857697,97829.0,97828.0,0.051076]
[1732542739772,0.0302,97845.0,97827.0,0.15536]
[1732542739966,0.0302,97845.0,97828.0,0.15576]
[1732542739967,0.0325,97836.0,97828.0,0.15576]
[1732542740271,0.0325,97836.0,97835.0,0.051073]
[1732542744778,0.0325,97836.0,97828.0,0.23353082]
[1732542745075,0.0325,97836.0,97828.0,0.18245482]
[1732542745273,0.0325,97836.0,97834.0,0.051073]
[1732542747078,0.0295648,97836.0,97834.0,0.051073]
[1732542749676,0.0806368,97836.0,97834.0,0.051073]
[1732542750180,0.0806368,97836.0,97828.0,0.02709482]
[1732542750477,0.051077,97827.0,97826.0,0.0008]
[1732542750785,0.00080001,97829.0,97814.0,0.51612]
[1732542751083,0.05108,97822.0,97820.0,0.05108]
[1732542751283,0.0615,97821.0,97820.0,0.05108]
[1732542751477,0.051082,97818.0,97817.0,0.051082]
[1732542751871,0.051083,97815.0,97813.0,0.051084]
[1732542752069,0.0322,97814.0,97813.0,0.051084]
[1732542752271,0.03300001,97814.0,97813.0,0.051084]
[1732542752772,0.051086,97810.0,97807.0,0.20794008]
[1732542752990,0.03300001,97814.0,97809.0,0.02044889]
[1732542753176,0.0322,97814.0,97812.0,0.051084]
[1732542753391,0.0322,97814.0,97813.0,0.0004]
[1732542754091,0.0322,97814.0,97813.0,0.412284]
[1732542754287,0.36133716,97829.0,97827.0,0.051076]
[1732542754473,0.41241316,97829.0,97827.0,0.051076]
[1732542754677,0.41241316,97829.0,97828.0,0.0004]
[1732542756980,0.41241316,97829.0,97828.0,0.07831424]
[1732542757172,0.41241316,97829.0,97828.0,0.051476]
[1732542759385,0.00053716,97829.0,97828.0,0.051476]
[1732542759885,0.00053716,97829.0,97828.0,0.07878044]
[1732542762982,0.051073,97835.0,97833.0,0.051074]
[1732542762983,0.03117016,97835.0,97833.0,0.051074]
[1732542763377,0.03117016,97835.0,97834.0,0.0004]
[1732542764084,0.051072,97837.0,97835.0,0.051073]
[1732542764478,0.0319,97836.0,97835.0,0.051073]
[1732542766492,0.051076,97830.0,97828.0,0.04775468]
[1732542766784,0.051076,97830.0,97828.0,0.02045024]
[1732542767585,0.3608,97829.0,97816.0,0.3608]
[1732542767791,0.3608,97829.0,97812.0,0.02045024]
[1732542767792,0.051084,97813.0,97812.0,0.02045024]
[1732542768987,0.411884,97813.0,97812.0,0.02045024]
[1732542774991,0.0323,97816.0,97815.0,0.051083]
[1732542776383,0.0323,97816.0,97812.0,0.02045024]
[1732542776584,0.051084,97814.0,97812.0,0.02045024]
[1732542776797,0.00080001,97813.0,97807.0,0.02863633]
[1732542776985,0.051087,97808.0,97807.0,0.02863633]
[1732542777190,0.05188701,97808.0,97807.0,0.02863633]
[1732542777681,0.00080001,97808.0,97806.0,0.02045591]
[1732542777892,0.00080001,97808.0,97782.0,0.3608]
[1732542777893,0.357807,97807.0,97782.0,0.3608]
[1732542778194,0.05189101,97800.0,97782.0,0.3608]
[1732542778390,0.05189101,97800.0,97787.0,0.051098]
[1732542778593,0.08259101,97800.0,97790.0,0.051096]
[1732542778892,0.08259101,97800.0,97799.0,0.02740626]
[1732542779293,0.03150001,97800.0,97799.0,0.02740626]
[1732542786604,0.00080001,97800.0,97799.0,0.02740626]
[1732542788209,0.00080001,97800.0,97799.0,0.38820626]
[1732542788401,0.00080001,97800.0,97799.0,0.45270626]
[1732542791005,0.051084,97815.0,97799.0,0.45270626]
[1732542791305,0.051084,97815.0,97814.0,0.0004]
[1732542795810,0.051091,97800.0,97799.0,0.412292]
[1732542796011,0.051091,97800.0,97799.0,0.43792404]
[1732542796201,0.051491,97800.0,97799.0,0.43792404]
[1732542797505,0.051491,97800.0,97799.0,0.07712404]
[1732542798213,0.051491,97800.0,97799.0,0.07672404]
[1732542799501,0.358251,97800.0,97799.0,0.02563204]
[1732542799708,0.051101,97782.0,97781.0,0.051101]
[1732542799904,0.051101,97781.0,97779.0,0.3608]
[1732542800107,0.051101,97781.0,97780.0,0.02561124]
[1732542800306,0.051501,97781.0,97780.0,0.02561124]
[1732542801305,0.719101,97781.0,97771.0,0.051106]
[1732542801501,0.051105,97773.0,97768.0,0.051108]
[1732542801705,0.412305,97773.0,97768.0,0.051108]
[1732542801910,0.412305,97773.0,97772.0,0.02710823]
[1732542802302,0.41239035,97773.0,97772.0,0.02710823]
[1732542803308,0.36128535,97773.0,97772.0,0.02710823]
[1732542803514,0.00048535,97773.0,97772.0,0.02710823]
[1732542806504,0.00048535,97773.0,97772.0,0.07821423]
[1732542807511,0.05159035,97773.0,97772.0,0.07821423]
[1732542807711,0.05159035,97773.0,97772.0,0.02710823]
[1732542808919,0.05159035,97773.0,97772.0,0.02557429]
[1732542809113,0.051106,97772.0,97771.0,0.02045717]
[1732542809515,0.051506,97772.0,97771.0,0.02045717]
[1732542809710,0.051506,97772.0,97771.0,0.07156317]
[1732542809908,0.051111,97763.0,97762.0,0.05111]
[1732542810319,0.051111,97763.0,97761.0,0.38720084]
[1732542810320,0.051108,97767.0,97766.0,0.051108]
[1732542810732,0.051108,97767.0,97766.0,0.051508]
[1732542812716,0.15540535,97773.0,97772.0,0.051106]
[1732542812717,8.535e-05,97773.0,97772.0,0.051106]
[1732542813018,8.535e-05,97773.0,97772.0,0.051506]
[1732542814927,0.051101,97782.0,97780.0,0.051101]
[1732542815107,0.051101,97781.0,97780.0,0.051101]
[1732542815816,0.05117026,97781.0,97780.0,0.051101]
[1732542817214,0.051103,97777.0,97776.0,0.051102]
[1732542817915,6.926e-05,97781.0,97771.0,0.031]
[1732542818117,0.051106,97771.0,97770.0,0.051106]
[1732542818430,0.030626,97771.0,97770.0,0.051106]
[1732542820726,0.051107,97769.0,97768.0,0.38622183]
[1732542820926,0.051107,97769.0,97768.0,0.43652983]
[1732542821222,0.051507,97769.0,97768.0,0.43652983]
[1732542824126,0.051507,97769.0,97768.0,0.07572983]
[1732542824525,0.051095,97792.0,97778.0,0.051102]
[1732542824735,0.051102,97779.0,97778.0,0.051102]
[1732542825420,0.3608,97804.0,97787.0,0.051097]
[1732542825421,0.04703042,97788.0,97787.0,0.051097]
[1732542827018,0.04703042,97788.0,97787.0,0.0764003]
[1732542827421,0.15196,97798.0,97787.0,0.0253033]
[1732542827623,0.15196,97798.0,97787.0,0.3608]
[1732542827823,0.3608,97804.0,97798.0,0.051091]
[1732542827824,0.051092,97799.0,97798.0,0.051091]
[1732542828132,0.051092,97799.0,97798.0,0.051491]
[1732542829017,0.3608,97804.0,97803.0,0.051089]
[1732542829018,0.411889,97804.0,97803.0,0.051089]
[1732542829422,0.051089,97804.0,97803.0,0.051489]
[1732542833034,0.051089,97804.0,97803.0,0.0004]
[1732542833825,0.051089,97804.0,97803.0,0.051489]
[1732542837032,0.3608,97814.0,97803.0,0.0004]
[1732542837229,0.3608,97814.0,97813.0,0.051084]
[1732542837524,0.411884,97814.0,97813.0,0.051084]
[1732542837831,0.411884,97814.0,97813.0,0.051484]
[1732542841030,0.411884,97814.0,97813.0,0.02493434]
[1732542841431,0.718604,97814.0,97790.0,0.051096]
[1732542841634,0.051092,97801.0,97800.0,0.05109]
[1732542841827,0.051092,97801.0,97786.0,0.15192]
[1732542841828,0.051095,97796.0,97795.0,0.051093]
[1732542842031,0.051095,97792.0,97791.0,0.07155392]
[1732542843241,0.051095,97792.0,97791.0,0.09685446]
[1732542844239,0.051095,97792.0,97791.0,0.02045792]
[1732542844432,0.051095,97792.0,97791.0,0.07155392]
[1732542845029,0.0315,97795.0,97791.0,0.02045792]
[1732542845228,0.0315,97795.0,97794.0,0.051094]
[1732542845434,0.411889,97804.0,97803.0,0.051089]
[1732542845735,0.411889,97804.0,97803.0,0.051489]
[1732542847033,0.411889,97804.0,97803.0,0.07673926]
[1732542847340,0.411889,97804.0,97803.0,0.02565026]
[1732542851746,0.411889,97804.0,97786.0,0.051098]
[1732542851747,0.051099,97787.0,97786.0,0.051098]
[1732542852047,0.051499,97787.0,97786.0,0.051098]
[1732542854637,0.0004,97787.0,97786.0,0.051098]
[1732542855346,0.05109,97802.0,97801.0,0.051089]
[1732542855536,0.05109,97802.0,97792.0,0.051095]
[1732542855537,0.3608,97804.0,97803.0,0.051089]
[1732542855846,0.051089,97804.0,97803.0,0.051089]
[1732542856142,0.084287,97808.0,97807.0,0.051087]
[1732542856458,0.051087,97808.0,97807.0,0.051487]
[1732542857142,0.0656,97814.0,97807.0,0.0004]
[1732542857143,0.0325,97814.0,97807.0,0.0004]
[1732542857350,0.0325,97814.0,97813.0,0.051084]
[1732542857542,0.0325,97814.0,97813.0,0.051484]
[1732542857839,0.083584,97814.0,97813.0,0.051484]
[1732542858942,0.051084,97814.0,97813.0,0.051484]
[1732542860943,0.0303,97819.0,97813.0,0.0004]
[1732542861247,0.00056001,97830.0,97818.0,0.0004]
[1732542861542,0.1528,97843.0,97826.0,0.3608]
[1732542861744,0.051069,97843.0,97834.0,0.051073]
[1732542861942,0.203869,97843.0,97842.0,0.0004]
[1732542862245,0.564669,97843.0,97842.0,0.0004]
[1732542862653,0.411869,97843.0,97842.0,0.0004]
[1732542863644,0.411869,97843.0,97842.0,0.03143424]
[1732542863838,0.411869,97843.0,97842.0,0.0004]
[1732542864343,0.871269,97843.0,97842.0,0.0004]
[1732542869539,0.871269,97843.0,97837.0,0.03002202]
[1732542869540,0.051071,97838.0,97837.0,0.03002202]
[1732542869756,0.051081,97823.0,97822.0,0.051079]
[1732542869953,0.051082,97818.0,97817.0,0.08376826]
[1732542870452,0.051482,97818.0,97817.0,0.08376826]
[1732542870650,0.051482,97818.0,97817.0,0.03268726]
[1732542872143,0.051482,97818.0,97817.0,0.08376926]
[1732542872451,0.0004,97818.0,97817.0,0.08376926]
[1732542873752,0.031037,97827.0,97817.0,0.08376926]
[1732542874055,0.031037,97827.0,97826.0,0.051477]
[1732542874855,0.031037,97827.0,97826.0,0.0004]
[1732542876447,0.391837,97827.0,97826.0,0.0004]
[1732542885352,0.548157,97827.0,97826.0,0.0004]
[1732542891864,0.391837,97827.0,97826.0,0.0004]
[1732542892175,0.548157,97827.0,97826.0,0.0004]
[1732542895062,0.88560334,97827.0,97826.0,0.0004]
[1732542895372,1.35812334,97827.0,97826.0,1e-06]
[1732542895970,1.67812334,97827.0,97826.0,1e-06]
[1732542897664,0.05109,97802.0,97793.0,0.3608]
[1732542897864,0.20741,97802.0,97785.0,0.3608]
[1732542898058,0.20781,97802.0,97783.0,0.00153372]
[1732542898257,0.051098,97787.0,97783.0,0.00153372]
[1732542898466,0.568218,97787.0,97783.0,0.00153372]
[1732542899372,0.568218,97787.0,97786.0,0.0313592]
[1732542901672,0.568218,97787.0,97786.0,0.00052]
[1732542903463,0.51712,97787.0,97783.0,0.03125835]
[1732542903672,0.51712,97787.0,97771.0,0.3608]
[1732542903875,0.051106,97772.0,97771.0,0.3608]
[1732542904073,0.051906,97772.0,97771.0,0.3608]
[1732542905873,0.051906,97772.0,97771.0,0.39224251]
[1732542908976,0.051906,97772.0,97771.0,0.03144251]
[1732542909177,0.051906,97772.0,97768.0,0.0639]
[1732542909375,0.051906,97772.0,97768.0,0.0328]
[1732542909376,0.051107,97769.0,97768.0,0.0328]
[1732542909576,0.051907,97769.0,97768.0,0.0328]
[1732542909778,0.051907,97769.0,97768.0,0.06200597]
[1732542913982,0.051907,97769.0,97768.0,0.02920597]
[1732542914194,0.051907,97769.0,97763.0,0.0308]
[1732542914195,0.05111,97764.0,97763.0,0.0308]
[1732542914581,0.05111,97763.0,97758.0,0.0332]
[1732542914885,0.05111,97763.0,97758.0,0.06203653]
[1732542914886,0.051912,97759.0,97758.0,0.06203653]
[1732542915078,0.051912,97759.0,97758.0,0.02883653]
[1732542915273,0.051912,97759.0,97751.0,0.3616]
[1732542915274,0.051116,97752.0,97751.0,0.3616]
[1732542915474,0.051116,97752.0,97751.0,0.3608]
[1732542915679,0.051916,97752.0,97751.0,0.3608]
[1732542916079,0.051916,97752.0,97751.0,0.411917]
[1732542916286,0.051916,97752.0,97751.0,0.44028085]
[1732542916681,0.0008,97752.0,97751.0,0.74720085]
[1732542916880,0.0008,97759.0,97758.0,0.051113]
[1732542917088,0.051106,97771.0,97770.0,0.051107]
[1732542917583,0.051106,97771.0,97770.0,0.05190701]
[1732542919193,0.051106,97771.0,97770.0,0.00080001]
[1732542919884,0.051106,97771.0,97770.0,0.05190701]
[1732542920086,0.0008,97772.0,97771.0,0.051106]
[1732542920288,0.0008,97772.0,97771.0,0.389346]
[1732542920581,0.0008,97772.0,97771.0,0.39014601]
[1732542921585,0.0008,97772.0,97771.0,0.08330601]
[1732542922780,0.051906,97772.0,97771.0,0.00080001]
[1732542929999,0.412706,97772.0,97771.0,0.00080001]
[1732542930824,0.563266,97772.0,97771.0,0.00080001]
[1732542932994,0.563266,97772.0,97735.0,0.051125]
[1732542932995,0.051118,97749.0,97735.0,0.051125]
[1732542933200,0.201678,97749.0,97723.0,0.24674857]
[1732542933401,0.202078,97749.0,97728.0,0.051128]
[1732542933603,0.202078,97749.0,97723.0,0.115531]
[1732542933791,0.051121,97742.0,97724.0,0.05113]
[1732542933992,0.411921,97742.0,97737.0,0.02910768]
[1732542934305,0.051123,97738.0,97737.0,0.02910768]
[1732542934495,0.051132,97721.0,97720.0,0.051133]
[1732542934694,0.05123483,97721.0,97720.0,0.051133]
[1732542934892,0.05163483,97721.0,97720.0,0.051133]
[1732542935494,0.00050283,97721.0,97720.0,0.051133]
[1732542935797,0.051133,97719.0,97718.0,0.38894575]
[1732542937102,0.051533,97719.0,97718.0,0.38894575]
[1732542938399,0.051533,97719.0,97718.0,0.44007975]
[1732542940134,0.0004,97719.0,97718.0,0.74707975]
[1732542941098,0.10050123,97730.0,97718.0,0.39214449]
[1732542941302,0.051128,97729.0,97718.0,0.38894575]
[1732542941502,0.051133,97719.0,97718.0,0.02814575]
[1732542941693,0.051136,97716.0,97715.0,0.051135]
[1732542942609,0.051536,97716.0,97715.0,0.051135]
[1732542949503,0.051136,97714.0,97713.0,0.02047262]
[1732542950012,0.051138,97711.0,97710.0,0.3608]
[1732542950211,0.051138,97710.0,97709.0,0.02893584]
[1732542950451,0.051142,97703.0,97702.0,9.496e-05]
[1732542950911,0.051542,97703.0,97702.0,9.496e-05]
[1732542951310,0.051542,97703.0,97702.0,0.02834826]
[1732542953706,0.051542,97703.0,97702.0,9.496e-05]
[1732542954413,0.051153,97681.0,97680.0,0.3608]
[1732542954615,0.198273,97681.0,97680.0,0.38917554]
[1732542954802,0.198673,97681.0,97680.0,0.38917554]
[1732542955413,0.19875616,97681.0,97680.0,0.38917554]
[1732542960616,0.05163616,97681.0,97680.0,0.38917554]
[1732542960911,0.05163616,97681.0,97680.0,0.44032954]
[1732542962312,0.00048316,97681.0,97680.0,0.44032954]
[1732542962511,0.051147,97697.0,97696.0,0.051145]
[1732542962820,0.3608,97703.0,97701.0,0.051142]
[1732542962821,0.051143,97702.0,97701.0,0.051142]
[1732542963115,0.051143,97702.0,97701.0,0.00079999]
[1732542963504,0.198343,97702.0,97701.0,0.00079999]
[1732542964624,0.198343,97702.0,97701.0,0.05194299]
[1732542965210,0.198343,97702.0,97701.0,0.00079999]
[1732542965919,0.198343,97702.0,97701.0,0.02992622]
[1732542966117,0.198343,97702.0,97701.0,0.00079999]
[1732542966715,0.198343,97702.0,97701.0,0.08019182]
[1732542967018,0.198343,97702.0,97701.0,0.00079999]
[1732542968624,0.559143,97702.0,97701.0,0.00079999]
[1732542969330,0.051143,97702.0,97701.0,0.00079999]
[1732542972119,0.051143,97702.0,97701.0,0.02918735]
[1732542972426,0.051143,97702.0,97701.0,0.00079999]
[1732542972619,0.14284,97705.0,97704.0,0.051141]
[1732542972922,0.193981,97705.0,97704.0,0.051141]
[1732542973128,0.051142,97702.0,97701.0,0.00079999]
[1732542973427,0.051542,97702.0,97701.0,0.00079999]
[1732542973725,0.05059089,97701.0,97700.0,0.051143]
[1732542974225,0.05099089,97701.0,97700.0,0.0799633]
[1732542975917,0.05099089,97701.0,97700.0,0.0288203]
[1732542976120,0.0004,97701.0,97691.0,0.02047943]
[1732542976355,0.051147,97692.0,97691.0,0.07162743]
[1732542976515,0.051547,97692.0,97691.0,0.07162743]
[1732542977419,0.0004,97692.0,97691.0,0.07162743]
[1732542980122,0.0004,97692.0,97691.0,0.25382966]
[1732542980427,0.0004,97692.0,97691.0,0.07162743]
[1732542980630,0.051547,97692.0,97691.0,0.07162743]
[1732542981533,0.0004,97692.0,97691.0,0.37870743]
[1732542981927,0.0004,97692.0,97691.0,0.56141425]
[1732542982427,0.031065,97697.0,97696.0,0.051145]
[1732542985525,0.051147,97692.0,97691.0,0.07162643]
[1732542985934,0.051547,97692.0,97691.0,0.07162643]
[1732542988136,0.051547,97692.0,97691.0,0.02047943]
[1732542993326,0.051547,97692.0,97691.0,0.38127943]
[1732542993538,0.051547,97692.0,97691.0,0.02047943]
[1732542995945,0.03047448,97692.0,97691.0,0.02047943]
[1732542999542,0.03047448,97692.0,97691.0,0.38127943]
[1732542999741,0.03047448,97692.0,97691.0,0.02047943]
[1732543024757,0.03047448,97692.0,97680.0,0.3608]
[1732543024758,0.051153,97682.0,97680.0,0.3608]
[1732543024958,0.051153,97682.0,97681.0,0.02971751]
[1732543025168,0.051553,97682.0,97681.0,0.02971751]
[1732543025864,0.412353,97682.0,97681.0,0.02971751]
[1732543026074,0.05116,97668.0,97662.0,0.051163]
[1732543026258,0.05116,97668.0,97658.0,0.3608]
[1732543026463,0.05156,97668.0,97658.0,0.42681812]
[1732543026660,0.05156,97668.0,97658.0,0.42761812]
[1732543027260,0.051165,97659.0,97658.0,0.06681812]
[1732543027557,0.051165,97658.0,97657.0,0.051166]
[1732543027861,0.051565,97658.0,97657.0,0.411966]
[1732543028758,0.051565,97658.0,97657.0,0.44011655]
[1732543029476,0.031085,97658.0,97657.0,0.44011655]
[1732543031361,0.010605,97658.0,97657.0,0.44011655]
[1732543031568,0.0004,97658.0,97657.0,0.44011655]
[1732543031869,0.051565,97658.0,97657.0,0.44011655]
[1732543032055,0.051565,97658.0,97657.0,0.40943586]
[1732543032300,0.051565,97658.0,97657.0,0.04863586]
[1732543032462,0.051565,97658.0,97657.0,0.02048531]
[1732543033163,0.051168,97652.0,97648.0,0.00153597]
[1732543033569,0.051568,97652.0,97648.0,0.00153597]
[1732543034373,0.051568,97652.0,97628.0,0.3608]
[1732543034374,0.3076,97652.0,97628.0,0.3608]
[1732543034564,0.051179,97632.0,97631.0,0.051179]
[1732543034964,0.05118,97629.0,97628.0,0.38965481]
[1732543035277,0.05118,97629.0,97628.0,0.39045481]
[1732543035575,0.05127394,97629.0,97628.0,0.38965481]
[1732543038173,0.03127394,97629.0,97628.0,0.38965481]
[1732543039971,9.394e-05,97629.0,97628.0,0.38965481]
[1732543040175,9.394e-05,97629.0,97628.0,0.44083581]
[1732543041676,9.394e-05,97629.0,97628.0,0.38965481]
[1732543041879,0.03079394,97630.0,97628.0,0.38965481]
[1732543042281,0.03079394,97630.0,97629.0,0.00119999]
[1732543048789,0.39159394,97630.0,97629.0,0.00119999]
[1732543050277,0.051187,97616.0,97615.0,9.418e-05]
[1732543050484,0.200987,97616.0,97615.0,9.418e-05]
[1732543050681,0.201387,97616.0,97615.0,9.418e-05]
[1732543051178,0.201387,97616.0,97615.0,0.03017478]
[1732543051378,0.201387,97616.0,97615.0,9.418e-05]
[1732543053090,0.201387,97616.0,97615.0,0.03046065]
[1732543053388,0.201387,97616.0,97615.0,9.418e-05]
[1732543054296,0.0004,97616.0,97615.0,9.418e-05]
[1732543054594,0.0004,97616.0,97615.0,0.0301433]
[1732543054895,0.1502,97616.0,97615.0,9.418e-05]
[1732543055695,0.1502,97616.0,97615.0,0.03122252]
[1732543056788,0.0004,97616.0,97615.0,0.03122252]
[1732543057192,0.0004,97616.0,97615.0,0.08241052]
[1732543059494,0.031103,97625.0,97624.0,0.051183]
[1732543059685,0.05118,97630.0,97627.0,0.051182]
[1732543059888,0.1498,97635.0,97624.0,0.0004]
[1732543060096,0.05118,97630.0,97629.0,0.05118]
[1732543060286,0.0313,97642.0,97624.0,0.0004]
[1732543060496,0.051182,97627.0,97624.0,0.0004]
[1732543060800,0.051183,97625.0,97624.0,0.0004]
[1732543062095,0.051183,97625.0,97624.0,0.051583]
[1732543062797,0.051183,97625.0,97624.0,0.0004]
[1732543066804,0.202583,97625.0,97624.0,0.0004]
[1732543067289,0.202583,97625.0,97624.0,0.051583]
[1732543067799,0.051183,97625.0,97624.0,0.051583]
[1732543070391,0.1514,97630.0,97624.0,0.0004]
[1732543070606,0.051179,97631.0,97624.0,0.0004]
[1732543070806,0.051181,97629.0,97624.0,0.0004]
[1732543070997,0.051181,97629.0,97628.0,0.051181]
[1732543073910,0.1514,97633.0,97624.0,0.0004]
[1732543074204,0.1514,97633.0,97627.0,0.051181]
[1732543074205,0.051182,97628.0,97627.0,0.051181]
[1732543074708,0.051183,97625.0,97624.0,0.0004]
[1732543077102,0.05339105,97625.0,97624.0,0.0004]
[1732543080103,0.05339105,97625.0,97624.0,9.44e-05]
[1732543080299,0.36067105,97625.0,97600.0,0.1]
[1732543080504,0.411987,97616.0,97615.0,9.418e-05]
[1732543080704,0.563787,97616.0,97615.0,9.418e-05]
[1732543080903,0.871107,97616.0,97615.0,9.418e-05]
[1732543081307,0.87331505,97616.0,97615.0,9.418e-05]
[1732543082208,0.56599505,97616.0,97615.0,9.418e-05]
[1732543082417,0.87331505,97616.0,97615.0,9.418e-05]
[1732543083207,0.87331505,97616.0,97600.0,0.1]
[1732543083401,0.051195,97601.0,97600.0,0.1]
[1732543083606,0.051595,97601.0,97600.0,0.13103228]
[1732543084208,0.05389378,97601.0,97600.0,0.13103228]
[1732543087513,0.00269878,97601.0,97600.0,0.13103228]
[1732543087709,0.0614,97615.0,97601.0,0.051195]
[1732543087710,0.0306,97615.0,97601.0,0.051195]
[1732543087912,0.00052001,97618.0,97617.0,0.051187]
[1732543088212,0.031,97629.0,97614.0,0.3608]
[1732543088213,0.082181,97629.0,97614.0,0.3608]
[1732543088420,0.051181,97629.0,97624.0,0.3608]